bitfinex-derivatives/quotes_BNBF0:USTF0_20241230
["timestamp","ask_amount","ask_price","bid_price","bid_amount"]
[1735582131821,1.40878052,704.77,703.62,1.04162044]
[1735582133324,0.26128145,704.76,703.62,1.04162044]
[1735582133923,0.26128145,704.76,703.65,1.04162044]
[1735582135027,0.26128145,704.76,703.59,1.04162044]
[1735582135421,0.26133129,704.75,703.59,1.04162044]
[1735582135624,0.26133129,704.74,703.59,1.04162044]
[1735582135920,0.26133129,704.73,703.59,1.04162044]
[1735582136126,0.26133129,704.73,703.43,1.04162044]
[1735582136326,0.26133129,704.74,703.43,1.04162044]
[1735582136526,0.26133129,704.73,703.43,1.04162044]
[1735582136721,1.232,704.75,703.43,1.04162044]
[1735582136722,0.26133129,704.72,703.43,1.04162044]
[1735582137026,0.26133129,704.71,703.43,1.04162044]
[1735582137222,0.26133129,704.7,703.43,1.04162044]
[1735582137429,0.26133129,704.69,703.44,1.04162044]
[1735582137630,0.26133129,704.68,703.44,1.04162044]
[1735582137829,0.26133129,704.7,703.44,1.04162044]
[1735582138127,0.26133129,704.69,703.44,1.04162044]
[1735582138327,0.26133129,704.7,703.44,1.04162044]
[1735582138528,1.48323371,704.71,703.37,1.04162044]
[1735582138529,0.26133129,704.69,703.37,1.04162044]
[1735582138724,0.26133129,704.7,703.37,1.04162044]
[1735582138925,0.26133129,704.69,703.37,1.04162044]
[1735582139127,0.26133129,704.7,703.37,1.04162044]
[1735582139327,0.26133129,704.7,703.36,1.04162044]
[1735582140231,0.26133129,704.7,703.35,1.04162044]
[1735582140432,1.48323371,704.71,703.35,1.04162044]
[1735582140627,0.26134917,704.7,703.35,1.04162044]
[1735582141131,1.48323371,704.71,703.35,1.04162044]
[1735582141330,0.26133804,704.7,703.35,1.04162044]
[1735582142427,0.26134861,704.69,703.39,1.04162044]
[1735582142631,0.26134861,704.7,703.39,1.04162044]
[1735582143031,0.26134861,704.69,703.39,1.04162044]
[1735582143233,0.26134861,704.68,703.39,1.04162044]
[1735582143427,0.26134861,704.68,703.24,1.04162044]
[1735582143631,0.26134861,704.7,703.24,1.04162044]
[1735582144431,0.26134861,704.7,703.2,1.04162044]
[1735582145032,0.26141151,704.69,703.2,1.04162044]
[1735582145327,0.26141151,704.7,703.2,1.04162044]
[1735582145627,0.26141151,704.69,703.2,1.04162044]
[1735582145830,0.26141151,704.69,702.85,1.04162044]
[1735582145831,0.26141151,704.68,703.15,1.04162044]
[1735582146331,0.26141151,704.67,703.15,1.04162044]
[1735582146530,0.26141151,704.66,703.15,1.04162044]
[1735582146732,0.26141151,704.7,703.16,1.04162044]
[1735582147332,0.26137742,704.69,703.16,1.04162044]
[1735582147731,0.26137742,704.69,702.51,2.12664174]
[1735582147732,0.26137742,704.7,703.18,1.04162044]
[1735582147931,0.26137742,704.69,703.18,1.04162044]
[1735582148133,0.52275786,704.69,703.18,1.04162044]
[1735582148429,0.26138044,704.7,703.18,1.04162044]
[1735582148628,1.48323371,704.71,703.18,1.04162044]
[1735582148828,1.48323371,704.71,703.22,1.04162044]
[1735582149033,0.2613702,704.7,703.22,1.04162044]
[1735582149828,0.2613702,704.7,703.2,1.04162044]
[1735582150027,1.48323371,704.71,703.2,1.04162044]
[1735582150229,0.26139218,704.69,703.2,1.04162044]
[1735582150431,0.26139218,704.7,703.2,1.04162044]
[1735582150631,0.26139218,704.7,703.14,1.04162044]
[1735582150827,0.26139218,704.68,703.14,1.04162044]
[1735582151130,0.26139218,704.69,703.14,1.04162044]
[1735582151353,0.26139218,704.67,703.14,1.04162044]
[1735582151733,0.26139218,704.68,703.14,1.04162044]
[1735582152034,0.26139218,704.67,703.14,1.04162044]
[1735582152235,0.26139218,704.66,703.14,1.04162044]
[1735582152433,0.26139218,704.65,703.14,1.04162044]
[1735582152834,1.48323371,704.71,703.29,1.04162044]
[1735582153034,0.26132347,704.64,703.29,1.04162044]
[1735582153228,0.26132347,704.7,703.29,1.04162044]
[1735582153430,0.26132347,704.63,703.29,1.04162044]
[1735582153632,1.74458878,704.69,703.37,1.04162044]
[1735582153833,1.48326531,704.69,703.37,1.04162044]
[1735582154033,0.26130891,704.68,703.37,1.04162044]
[1735582154436,0.26130891,704.68,702.84,2.12664174]
[1735582154437,0.26130891,704.68,703.38,1.04162044]
[1735582154935,1.46130891,704.68,703.38,1.04162044]
[1735582155337,0.26130891,704.67,703.39,1.04162044]
[1735582155533,0.26130393,704.67,703.39,1.04162044]
[1735582155933,0.26130883,704.66,703.39,1.04162044]
[1735582156535,0.26130883,704.66,703.41,1.04162044]
[1735582156835,0.26130883,704.65,703.41,1.04162044]
[1735582157235,0.26130883,704.67,703.41,1.04162044]
[1735582157537,1.2,704.68,703.4,1.04162044]
[1735582158431,0.28382079,704.67,703.4,1.04162044]
[1735582158637,0.28382079,704.67,703.42,1.04162044]
[1735582159835,0.28382079,704.67,702.83,2.12664174]
[1735582159836,0.28382079,704.67,703.5,1.04162044]
[1735582160631,0.28382079,704.67,703.59,1.04162044]
[1735582161638,0.28382079,704.67,703.61,1.04162044]
[1735582162837,0.28382079,704.67,703.65,1.04162044]
[1735582163739,0.28382079,704.67,703.3,1.04162044]
[1735582163740,0.28382079,704.67,703.68,1.04162044]
[1735582166340,0.28382079,704.67,703.78,1.04162044]
[1735582166939,1.2,704.68,703.78,1.04162044]
[1735582167341,1.2,704.68,703.89,1.04162044]
[1735582168647,1.2,704.68,703.78,1.04162044]
[1735582169739,1.2,704.68,703.76,1.04162044]
[1735582171044,1.2,704.68,703.71,1.04162044]
[1735582172444,1.2,704.68,703.64,1.04162044]
[1735582173346,1.2,704.68,703.63,1.04162044]
[1735582174549,1.2,704.68,703.54,1.04162044]
[1735582175847,1.2,704.68,703.57,1.04162044]
[1735582177047,1.2,704.68,703.59,1.04162044]
[1735582178049,1.2,704.68,703.58,1.04162044]
[1735582179245,1.2,704.68,703.55,1.04162044]
[1735582180251,1.2,704.68,703.27,1.04162044]
[1735582180252,1.2,704.68,703.59,1.04162044]
[1735582181246,1.2,704.68,703.73,1.04162044]
[1735582182348,1.2,704.68,703.79,1.04162044]
[1735582183755,1.2,704.68,703.82,1.04162044]
[1735582184955,1.2,704.68,703.84,1.04162044]
[1735582185957,1.2,704.68,703.57,1.04162044]
[1735582186556,1.2,704.68,703.58,0.28426049]
[1735582186758,1.2,704.68,703.64,1.04162044]
[1735582187058,1.2,704.68,703.65,0.28423221]
[1735582187961,1.2,704.68,704.08,1.04162044]
[1735582188961,1.2,704.68,704.05,1.04162044]
[1735582190160,1.2,704.68,704.02,1.04162044]
[1735582191466,1.2,704.68,703.65,0.28423221]
[1735582191467,1.2,704.68,703.97,1.04162044]
[1735582192462,1.2,704.68,704.03,1.04162044]
[1735582194662,1.2,704.68,703.66,0.74549205]
[1735582194663,1.2,704.68,704.13,1.04162044]
[1735582197258,1.2,704.68,704.23,1.04162044]
[1735582198568,1.2,704.68,704.22,1.04162044]
[1735582199467,1.2,704.68,704.14,1.04162044]
[1735582200566,1.2,704.68,704.16,1.04162044]
[1735582201665,1.2,704.68,704.19,1.04162044]
[1735582202466,1.2,704.68,704.2,1.04162044]
[1735582203569,1.2,704.68,704.23,1.04162044]
[1735582204868,1.2,704.68,704.28,1.04162044]
[1735582206167,1.2,704.68,704.22,1.04162044]
[1735582206969,1.2,704.68,704.23,1.04162044]
[1735582208075,1.2,704.68,704.22,1.04162044]
[1735582209374,1.2,704.68,704.24,1.04162044]
[1735582210474,1.2,704.68,704.15,1.04162044]
[1735582211374,1.2,704.68,704.19,1.04162044]
[1735582212273,1.2,704.68,704.18,1.04162044]
[1735582213374,1.2,704.68,704.13,1.04162044]
[1735582214575,1.2,704.68,704.23,1.04162044]
[1735582216674,1.2,704.68,704.29,1.04162044]
[1735582217774,1.2,704.68,704.3,1.04162044]
[1735582217974,1.48184947,705.17,704.3,1.04162044]
[1735582218973,1.48184947,705.17,704.32,1.04162044]
[1735582219178,2.35284947,705.17,704.32,1.04162044]
[1735582219778,2.35284947,705.17,704.35,1.04162044]
[1735582220075,0.871,705.17,704.35,1.04162044]
[1735582220875,0.871,705.17,704.45,1.04162044]
[1735582221074,0.871,705.17,703.66,0.74549205]
[1735582221677,0.871,705.17,704.46,1.0422121]
[1735582222881,0.871,705.17,704.43,1.0422121]
[1735582223880,0.871,705.17,704.4,1.0422121]
[1735582224883,0.871,705.17,704.38,1.0422121]
[1735582227382,0.871,705.17,703.66,0.74731973]
[1735582227383,0.871,705.17,704.46,1.0422121]
[1735582228675,0.871,705.17,704.47,1.0422121]
[1735582229781,0.871,705.17,703.68,2.12784971]
[1735582229782,0.871,705.17,704.39,1.0422121]
[1735582232377,0.871,705.17,704.36,1.0422121]
[1735582233583,0.871,705.17,704.29,1.0422121]
[1735582234484,0.871,705.17,703.7,0.74731973]
[1735582234485,0.871,705.17,704.28,1.0422121]
[1735582235383,0.871,705.17,704.3,1.0422121]
[1735582236578,2.35255507,705.17,704.31,1.0422121]
[1735582237685,2.35255507,705.17,704.42,1.0422121]
[1735582238781,2.35255507,705.17,704.23,1.0422121]
[1735582238782,2.35255507,705.17,704.43,1.0422121]
[1735582240086,2.35255507,705.17,704.32,1.0422121]
[1735582241888,2.35255507,705.17,704.3,1.0422121]
[1735582242686,2.35255507,705.17,704.26,1.0422121]
[1735582244190,2.35255507,705.17,704.23,1.0422121]
[1735582246683,2.35255507,705.17,703.66,0.74731973]
[1735582246684,2.35255507,705.17,704.26,1.0422121]
[1735582247687,2.35255507,705.17,704.25,1.0422121]
[1735582248591,2.35255507,705.17,704.26,1.0422121]
[1735582249887,2.35255507,705.17,704.25,1.0422121]
[1735582251395,2.35255507,705.17,704.32,1.0422121]
[1735582252498,2.35255507,705.17,704.38,1.0422121]
[1735582253595,2.35255507,705.17,704.36,1.0422121]
[1735582254498,2.35255507,705.17,704.27,1.0422121]
[1735582255499,2.35255507,705.17,704.26,1.0422121]
[1735582256395,2.35255507,705.17,704.19,1.0422121]
[1735582257503,2.35255507,705.17,704.17,1.0422121]
[1735582258300,2.35255507,705.17,704.2,1.0422121]
[1735582259302,2.35255507,705.17,704.14,1.0422121]
[1735582260398,2.35255507,705.17,704.18,1.0422121]
[1735582261605,2.35255507,705.17,704.02,1.0422121]
[1735582262202,0.28362357,705.16,704.02,1.0422121]
[1735582263006,0.28362357,705.16,704.04,1.0422121]
[1735582263604,1.31162357,705.16,704.04,1.0422121]
[1735582263806,0.26114926,705.15,704.04,1.0422121]
[1735582264302,0.26114926,705.15,703.98,1.0422121]
[1735582264504,0.28363161,705.14,703.98,1.0422121]
[1735582265209,0.28363161,705.14,703.91,1.0422121]
[1735582266406,0.26117408,705.13,703.87,1.0422121]
[1735582267808,0.28363161,705.14,703.87,1.0422121]
[1735582268007,0.2612193,705.13,703.78,1.0422121]
[1735582269104,0.2612193,705.13,703.65,0.28423221]
[1735582269311,0.2612193,705.13,703.54,1.0422121]
[1735582270314,0.2613247,705.12,703.36,1.0422121]
[1735582270914,0.2613247,705.11,703.36,1.0422121]
[1735582271111,0.26131368,705.1,703.36,1.0422121]
[1735582271315,0.28363161,705.14,703.26,1.0422121]
[1735582271316,0.26131368,705.13,703.26,1.0422121]
[1735582271716,1.48282817,705.12,703.26,1.0422121]
[1735582271917,1.74409191,705.12,703.26,1.0422121]
[1735582272215,1.74409191,705.12,703.27,0.28438579]
[1735582272415,1.48282817,705.12,703.41,1.0422121]
[1735582272612,0.26125385,705.11,703.41,1.0422121]
[1735582273317,0.26125385,705.11,703.49,1.0422121]
[1735582274217,0.26123673,705.1,703.49,1.0422121]
[1735582274620,0.26123673,705.1,703.52,1.0422121]
[1735582275518,1.48282817,705.12,703.52,1.0422121]
[1735582275519,0.26122547,705.09,703.52,1.0422121]
[1735582275715,0.26122547,705.09,703.42,1.0422121]
[1735582276111,0.26122547,705.1,703.42,1.0422121]
[1735582276714,0.26122547,705.08,703.42,1.0422121]
[1735582277015,0.26122547,705.08,703.48,1.0422121]
[1735582277216,0.26122547,705.09,703.48,1.0422121]
[1735582277616,0.26122547,705.07,703.48,1.0422121]
[1735582277815,1.48282817,705.12,703.48,1.0422121]
[1735582278015,1.48282817,705.12,703.27,0.28438579]
[1735582278016,1.48282817,705.12,703.51,1.0422121]
[1735582278217,0.26125334,705.11,703.51,1.0422121]
[1735582278422,0.26125334,705.1,703.51,1.0422121]
[1735582278923,0.26126771,705.09,703.46,1.0422121]
[1735582279517,0.26126771,705.08,703.46,1.0422121]
[1735582279924,0.26126771,705.07,703.4,1.0422121]
[1735582280124,0.26126771,705.06,703.4,1.0422121]
[1735582280324,0.26126771,705.11,703.4,1.0422121]
[1735582280519,1.48282817,705.12,703.4,1.0422121]
[1735582280918,0.26127502,705.1,703.32,1.0422121]
[1735582281225,0.26127502,705.09,703.32,1.0422121]
[1735582281521,1.48282817,705.12,703.32,1.0422121]
[1735582281522,0.26127502,705.08,703.32,1.0422121]
[1735582281824,0.26127502,705.07,703.32,1.0422121]
[1735582282027,0.99,705.08,703.31,1.0422121]
[1735582282225,0.26127502,705.06,703.31,1.0422121]
[1735582282622,0.26127502,705.05,703.31,1.0422121]
[1735582283122,0.99,705.08,703.31,1.0422121]
[1735582283324,1.48277552,705.04,703.31,1.0422121]
[1735582283526,0.26123992,705.03,703.29,1.0422121]
[1735582284523,0.26123992,705.03,703.3,0.28437366]
[1735582284723,0.26123992,705.03,703.35,1.0422121]
[1735582284927,0.26123992,705.03,703.36,0.2843494]
[1735582285229,0.28368391,705.01,703.36,0.2843494]
[1735582285428,0.26123992,705.0,703.36,0.2843494]
[1735582285830,0.26123001,704.99,703.37,1.0422121]
[1735582286131,0.26123001,705.0,703.37,1.0422121]
[1735582286429,0.28369599,704.98,703.37,1.0422121]
[1735582286725,0.26125035,704.97,703.38,1.0422121]
[1735582287533,0.28370403,704.96,703.38,1.0422121]
[1735582287728,0.28370403,704.96,703.43,1.0422121]
[1735582288130,0.2612372,704.95,703.43,1.0422121]
[1735582288327,0.28371208,704.94,703.43,1.0422121]
[1735582288529,0.2612372,704.93,703.43,1.0422121]
[1735582289328,0.2612372,704.93,703.36,0.2843494]
[1735582289329,0.2612372,704.93,703.5,1.0422121]
[1735582290333,0.2612372,704.93,703.36,0.2843494]
[1735582290334,0.2612372,704.93,703.49,1.0422121]
[1735582291130,0.2612504,704.92,703.49,1.0422121]
[1735582291335,0.2612504,704.93,703.5,1.0422121]
[1735582291629,0.2612504,704.92,703.5,1.0422121]
[1735582291834,0.2612504,704.93,703.5,1.0422121]
[1735582292031,0.2612504,704.92,703.5,1.0422121]
[1735582292430,0.2612504,704.91,703.63,1.0422121]
[1735582292830,0.28371208,704.94,703.63,1.0422121]
[1735582293232,0.28371208,704.94,703.49,1.0422121]
[1735582293431,1.48267023,704.93,703.49,1.0422121]
[1735582294537,1.48267023,704.93,703.5,1.0422121]
[1735582295331,1.48267023,704.93,703.36,0.2843494]
[1735582295332,1.48267023,704.93,703.58,1.0422121]
[1735582296142,0.26120185,704.92,703.58,1.0422121]
[1735582296537,0.26120185,704.92,703.72,1.0422121]
[1735582297841,0.26120185,704.92,703.99,1.0422121]
[1735582298743,0.26120185,704.92,704.03,1.0422121]
[1735582299042,0.26119567,704.91,704.03,1.0422121]
[1735582299242,0.26119567,704.9,704.03,1.0422121]
[1735582299443,1.48267023,704.93,704.03,1.0422121]
[1735582299642,0.26119762,704.92,704.03,1.0422121]
[1735582300046,0.26119762,704.92,704.04,1.0422121]
[1735582300544,1.48267023,704.93,704.04,1.0422121]
[1735582301042,1.48267023,704.93,704.06,1.0422121]
[1735582302346,1.48267023,704.93,704.09,1.0422121]
[1735582303140,1.48267023,704.93,704.12,1.0422121]
[1735582304344,1.48267023,704.93,704.04,1.0422121]
[1735582305545,1.48267023,704.93,704.02,1.0422121]
[1735582306850,1.48267023,704.93,704.06,1.0422121]
[1735582307954,1.48267023,704.93,704.03,1.0422121]
[1735582309052,2.68667023,704.93,704.01,1.0422121]
[1735582309949,2.68667023,704.93,704.0,1.0422121]
[1735582311256,2.68667023,704.93,703.93,1.0422121]
[1735582312755,2.68667023,704.93,703.37,0.74787912]
[1735582312756,2.68667023,704.93,703.9,1.0422121]
[1735582314852,2.68667023,704.93,704.03,1.0422121]
[1735582315653,2.68667023,704.93,704.0,1.0422121]
[1735582317255,2.68667023,704.93,704.01,1.0422121]
[1735582319159,2.68667023,704.93,703.92,1.0422121]
[1735582319658,2.97038634,704.93,703.92,1.0422121]
[1735582320160,2.97038634,704.93,703.12,2.12784971]
[1735582320161,2.97038634,704.93,703.97,1.0422121]
[1735582321062,2.97038634,704.93,703.95,1.0422121]
[1735582322160,2.97038634,704.93,704.12,1.0422121]
[1735582323367,2.97038634,704.93,704.07,1.0422121]
[1735582326162,2.97038634,704.93,704.09,1.0422121]
[1735582327063,2.97038634,704.93,703.39,2.87572883]
[1735582327064,2.97038634,704.93,704.06,1.0422121]
[1735582327766,2.97038634,704.93,704.11,1.0422121]
[1735582328667,2.97038634,704.93,704.14,1.0422121]
[1735582330167,2.97038634,704.93,704.1,1.0422121]
[1735582331270,2.97038634,704.93,703.58,1.25065452]
[1735582331271,2.97038634,704.93,704.08,1.0422121]
[1735582332066,2.97038634,704.93,704.01,1.0422121]
[1735582333470,2.97038634,704.93,703.99,1.0422121]
[1735582334571,2.97038634,704.93,703.35,2.12784971]
[1735582334572,2.97038634,704.93,704.04,1.0422121]
[1735582334766,0.28372013,704.92,704.04,1.0422121]
[1735582335671,0.28372013,704.92,704.0,1.0422121]
[1735582336371,1.28672013,704.92,704.0,1.0422121]
[1735582337072,1.28672013,704.92,704.05,1.0422121]
[1735582337868,1.28672013,704.92,704.02,1.0422121]
[1735582338268,0.26122706,704.91,704.02,1.0422121]
[1735582338472,1.28672013,704.92,704.02,1.0422121]
[1735582338677,0.26123967,704.9,704.02,1.0422121]
[1735582338870,1.28672013,704.92,703.93,1.0422121]
[1735582339672,0.28372416,704.91,703.93,1.0422121]
[1735582340073,0.28372416,704.91,703.75,1.0422121]
[1735582341176,0.28372416,704.91,702.91,2.12784971]
[1735582341177,0.28372416,704.91,703.73,1.0422121]
[1735582342380,0.28372416,704.91,703.61,1.0422121]
[1735582343379,0.28372416,704.91,703.56,1.0422121]
[1735582344980,0.28372416,704.91,703.59,1.0422121]
[1735582346179,0.28372416,704.91,702.76,2.12784971]
[1735582346180,0.28372416,704.91,703.56,1.0422121]
[1735582347175,0.28372416,704.91,703.55,1.0422121]
[1735582347674,0.26126067,704.9,703.55,1.0422121]
[1735582347878,0.28373221,704.89,703.55,1.0422121]
[1735582348279,0.26126179,704.88,703.55,1.0422121]
[1735582348576,0.28373221,704.89,703.55,1.0422121]
[1735582350481,0.28373221,704.89,703.63,1.0422121]
[1735582351381,0.28373221,704.89,703.62,1.0422121]
[1735582352483,0.28373221,704.89,703.83,1.0422121]
[1735582353583,0.28373221,704.89,703.89,1.0422121]
[1735582354578,0.28373221,704.89,703.91,1.0422121]
[1735582356086,0.28373221,704.89,703.98,1.0422121]
[1735582357081,0.28373221,704.89,703.99,1.0422121]
[1735582357782,1.003,704.92,703.99,1.0422121]
[1735582358185,1.003,704.92,704.02,1.0422121]
[1735582359284,1.003,704.92,703.39,0.74706247]
[1735582359285,1.003,704.92,704.04,1.0422121]
[1735582361185,1.003,704.92,703.98,1.0422121]
[1735582362186,1.003,704.92,703.91,1.0422121]
[1735582363590,1.003,704.92,703.93,1.0422121]
[1735582364585,1.003,704.92,703.69,1.0422121]
[1735582364586,1.003,704.92,703.94,1.0422121]
[1735582366095,1.003,704.92,703.95,1.0422121]
[1735582367294,1.003,704.92,703.88,1.0422121]
[1735582367994,1.003,704.92,703.87,1.0422121]
[1735582369490,1.003,704.92,703.18,2.12784971]
[1735582369491,1.003,704.92,703.84,1.0422121]
[1735582370488,1.003,704.92,703.87,1.0422121]
[1735582371596,1.003,704.92,703.96,1.0422121]
[1735582372590,1.003,704.92,703.98,1.0422121]
[1735582373591,1.003,704.92,703.93,1.0422121]
[1735582374894,1.003,704.92,703.94,1.0422121]
[1735582377400,1.003,704.92,703.95,1.0422121]
[1735582378602,1.003,704.92,704.02,1.0422121]
[1735582379505,1.003,704.92,703.94,1.0422121]
[1735582380404,1.003,704.92,703.75,1.0422121]
[1735582381300,1.003,704.92,704.17,1.0422121]
[1735582382405,1.003,704.92,704.28,1.0422121]
[1735582383298,1.003,704.92,704.29,1.0422121]
[1735582384506,1.003,704.92,703.6,1.25065452]
[1735582384507,1.003,704.92,704.25,1.0422121]
[1735582385405,1.003,704.92,704.33,1.0422121]
[1735582386203,1.003,704.92,704.38,1.0422121]
[1735582387208,1.003,704.92,704.26,1.0422121]
[1735582388209,1.003,704.92,704.28,1.0422121]
[1735582389106,1.003,704.92,703.44,0.7434511]
[1735582389107,1.003,704.92,704.3,1.0422121]
[1735582390506,1.003,704.92,704.36,1.0422121]
[1735582391709,1.003,704.92,704.6,1.0422121]
[1735582392811,1.003,704.92,704.59,1.0422121]
[1735582393807,1.003,704.92,704.4,1.0422121]
[1735582394914,1.003,704.92,704.37,1.0422121]
[1735582395712,1.003,704.92,703.78,1.25065452]
[1735582395713,1.003,704.92,704.48,1.0422121]
[1735582396915,1.003,704.92,704.53,1.0422121]
[1735582398315,1.003,704.92,704.56,1.0422121]
[1735582399214,1.003,704.92,704.59,1.0422121]
[1735582400314,1.003,704.92,704.5,1.0422121]
[1735582401416,1.003,704.92,704.49,1.0422121]
[1735582402514,1.003,704.92,704.5,1.0422121]
[1735582403616,1.003,704.92,704.55,1.0422121]
[1735582404814,1.003,704.92,704.58,1.0422121]
[1735582405919,1.003,704.92,704.59,1.0422121]
[1735582407020,1.003,704.92,704.62,1.0422121]
[1735582407818,1.003,704.92,704.61,1.0422121]
[1735582409019,1.003,704.92,704.04,0.7447447]
[1735582409020,1.003,704.92,704.59,1.0422121]
[1735582410121,1.003,704.92,704.65,1.0422121]
[1735582411320,1.003,704.92,704.72,1.0422121]
[1735582412721,1.003,704.92,704.8,1.0422121]
[1735582413017,1.48112418,705.49,704.8,1.0422121]
[1735582413817,1.48112418,705.49,704.16,2.12784971]
[1735582413818,1.48112418,705.49,704.84,1.0422121]
[1735582414222,2.66112418,705.49,704.84,1.0422121]
[1735582415224,2.66112418,705.49,704.85,1.0422121]
[1735582415616,1.18,705.49,704.85,1.0422121]
[1735582416219,1.18,705.49,704.52,1.0422121]
[1735582417520,1.18,705.49,703.39,2.87259441]
[1735582417521,1.18,705.49,704.8,1.0422121]
[1735582418929,1.18,705.49,704.79,1.0422121]
[1735582419723,1.18,705.49,704.8,1.0422121]
[1735582421629,1.18,705.49,704.85,1.0422121]
[1735582422530,1.18,705.49,704.76,1.0422121]
[1735582423731,1.18,705.49,704.78,1.0422121]
[1735582424927,1.18,705.49,704.6,1.0422121]
[1735582425929,1.18,705.49,704.66,1.0422121]
[1735582426132,1.48088257,705.48,704.66,1.0422121]
[1735582426733,1.48088257,705.48,704.72,1.0422121]
[1735582427232,1.06210661,706.66,704.72,1.0422121]
[1735582427433,1.4807513,705.53,704.72,1.0422121]
[1735582427841,0.28302954,706.64,704.72,1.0422121]
[1735582428039,1.48072504,705.53,704.72,1.0422121]
[1735582428234,0.28302954,706.64,704.72,1.0422121]
[1735582428439,0.26084157,706.63,704.72,1.0422121]
[1735582428635,0.26084157,706.62,704.72,1.0422121]
[1735582428839,1.06210661,706.52,704.83,1.0422121]
[1735582429038,0.26084157,706.51,704.83,1.0422121]
[1735582429338,0.26084157,706.5,704.83,1.0422121]
[1735582429538,0.26084157,706.49,704.83,1.0422121]
[1735582429739,0.28309765,706.47,704.83,1.0422121]
[1735582429935,0.28309765,706.47,704.64,1.0422121]
[1735582429936,0.26084157,706.46,704.84,1.0422121]
[1735582430234,0.26084157,706.45,704.84,1.0422121]
[1735582430435,0.28311368,706.43,704.84,1.0422121]
[1735582430637,0.26084564,706.42,704.84,1.0422121]
[1735582430838,0.2831257,706.4,704.84,1.0422121]
[1735582431038,0.26084564,706.39,704.84,1.0422121]
[1735582431239,0.26084564,706.39,704.39,1.25065452]
[1735582431240,0.26084564,706.38,704.82,1.0422121]
[1735582431442,0.26084564,706.37,704.82,1.0422121]
[1735582431640,0.54398738,706.36,704.82,1.0422121]
[1735582431839,0.28314975,706.34,704.82,1.0422121]
[1735582432139,0.26084564,706.33,704.82,1.0422121]
[1735582432340,0.28316178,706.31,704.82,1.0422121]
[1735582432538,0.26084564,706.3,704.82,1.0422121]
[1735582432739,0.28317381,706.28,704.82,1.0422121]
[1735582432936,0.28317381,706.28,704.36,1.25065452]
[1735582432937,0.26083866,706.27,704.84,1.0422121]
[1735582433642,0.26083374,706.26,704.84,1.0422121]
[1735582433842,0.26083374,706.25,704.87,1.0422121]
[1735582434143,0.26083374,706.27,704.87,1.0422121]
[1735582434343,0.26083374,706.24,704.87,1.0422121]
[1735582434543,0.26083374,706.26,704.87,1.0422121]
[1735582434740,0.26083374,706.23,704.87,1.0422121]
[1735582435044,0.28317381,706.28,704.55,1.0422121]
[1735582435045,0.26083374,706.25,704.88,1.0422121]
[1735582435247,0.26083374,706.24,704.88,1.0422121]
[1735582435543,0.28317381,706.28,704.88,1.0422121]
[1735582435941,0.26081134,706.23,704.9,1.0422121]
[1735582436244,0.26081134,706.27,704.9,1.0422121]
[1735582436444,0.26081134,706.22,704.9,1.0422121]
[1735582436639,0.26081134,706.26,704.9,1.0422121]
[1735582436848,0.26081134,706.25,704.9,1.0422121]
[1735582437047,0.26081134,706.25,704.37,0.74472251]
[1735582437048,0.26081134,706.24,704.87,1.0422121]
[1735582437248,0.26081134,706.23,704.87,1.0422121]
[1735582437447,0.28317381,706.28,704.87,1.0422121]
[1735582437448,0.26081134,706.27,704.87,1.0422121]
[1735582437648,0.26081134,706.26,704.87,1.0422121]
[1735582437842,0.26081134,706.27,704.87,1.0422121]
[1735582438045,0.28317381,706.28,704.87,1.0422121]
[1735582438246,0.26079392,706.27,704.87,1.0422121]
[1735582438443,0.26079392,706.27,704.9,1.0422121]
[1735582439846,1.48016347,706.26,704.34,0.74472251]
[1735582440050,0.26080108,706.25,704.34,0.74472251]
[1735582440749,1.48016347,706.26,704.34,0.74472251]
[1735582441043,0.2607872,706.24,704.34,0.74472251]
[1735582441248,0.2607872,706.25,704.34,0.74472251]
[1735582441448,0.2607872,706.23,704.34,0.74472251]
[1735582441650,0.2607872,706.23,705.01,1.03906777]
[1735582441850,0.26078815,706.24,705.01,1.03906777]
[1735582442149,0.26078815,706.22,705.01,1.03906777]
[1735582442544,0.28320589,706.2,705.01,1.03906777]
[1735582443053,0.26078815,706.19,705.02,1.03906777]
[1735582443849,0.26078815,706.19,704.38,2.12143003]
[1735582443850,0.26078815,706.19,704.96,1.03906777]
[1735582444854,0.26078815,706.19,704.34,2.12143003]
[1735582444855,0.26078815,706.19,705.05,1.03906777]
[1735582445852,0.26078815,706.19,704.96,1.03906777]
[1735582446650,0.28321792,706.17,704.96,1.03906777]
[1735582446946,0.26078815,706.16,704.96,1.03906777]
[1735582447150,0.28321792,706.17,704.96,1.03906777]
[1735582447954,0.28321792,706.17,704.91,1.03906777]
[1735582448155,0.26082518,706.16,704.91,1.03906777]
[1735582448354,0.28321792,706.17,704.91,1.03906777]
[1735582449656,0.28321792,706.17,704.9,1.03906777]
[1735582450056,1.4802002,706.16,704.9,1.03906777]